bitfinex-derivatives/quotes_BTCF0:USTF0_20251028
["timestamp","ask_amount","ask_price","bid_price","bid_amount"]
[1761671804315,0.19239798,115490.0,115480.0,9.083e-05]
[1761671804514,0.21576815,115490.0,115480.0,9.083e-05]
[1761671804814,0.19239798,115490.0,115480.0,9.083e-05]
[1761671805714,0.21576815,115490.0,115480.0,9.083e-05]
[1761671810024,0.21576815,115490.0,115480.0,0.16894849]
[1761671810823,0.21576815,115490.0,115480.0,9.083e-05]
[1761671811023,0.21576815,115490.0,115480.0,0.16894849]
[1761671811720,0.21576815,115490.0,115480.0,9.083e-05]
[1761671811922,0.21576815,115490.0,115480.0,0.16894849]
[1761671812725,0.21576815,115490.0,115480.0,9.083e-05]
[1761671814118,0.38462581,115490.0,115480.0,9.083e-05]
[1761671814325,0.41579246,115490.0,115480.0,9.083e-05]
[1761671814825,0.39242229,115490.0,115480.0,9.083e-05]
[1761671817127,0.22356463,115490.0,115480.0,9.083e-05]
[1761671817721,0.39242229,115490.0,115480.0,9.083e-05]
[1761671818226,0.41579526,115490.0,115480.0,9.083e-05]
[1761671819429,0.2469376,115490.0,115480.0,9.083e-05]
[1761671819929,0.4038976,115490.0,115480.0,9.083e-05]
[1761671820128,0.2469376,115490.0,115480.0,9.083e-05]
[1761671820320,0.21577095,115490.0,115480.0,0.16894849]
[1761671820525,0.37273095,115490.0,115480.0,0.16894849]
[1761671820724,0.37273095,115490.0,115480.0,9.083e-05]
[1761671822135,0.54158861,115490.0,115480.0,9.083e-05]
[1761671822324,0.56938229,115490.0,115480.0,9.083e-05]
[1761671822832,0.56938229,115490.0,115460.0,0.00147801]
[1761671823130,0.16885766,115470.0,115460.0,0.00147801]
[1761671823330,0.02154032,115470.0,115460.0,0.00147801]
[1761671823531,0.16885766,115470.0,115460.0,0.00147801]
[1761671823730,0.19086198,115470.0,115460.0,0.00147801]
[1761671824827,0.19086198,115470.0,115460.0,0.00247801]
[1761671825131,0.19086198,115470.0,115460.0,0.17433567]
[1761671825534,0.02200432,115470.0,115460.0,0.17433567]
[1761671826423,0.02400432,115470.0,115460.0,0.17133567]
[1761671826940,0.02400432,115470.0,115460.0,0.17033567]
[1761671827127,0.19286198,115470.0,115460.0,0.17033567]
[1761671827528,0.02200432,115470.0,115460.0,0.17033567]
[1761671827734,0.02200432,115470.0,115460.0,0.34179333]
[1761671828239,0.02200432,115470.0,115460.0,0.17033567]
[1761671828439,0.02400432,115470.0,115460.0,0.17033567]
[1761671829032,0.19286198,115470.0,115460.0,0.17033567]
[1761671829437,0.02400432,115470.0,115460.0,0.17033567]
[1761671829642,0.02400432,115470.0,115460.0,0.75166349]
[1761671829643,6.667e-05,115470.0,115460.0,0.75166349]
[1761671829850,0.00206667,115470.0,115460.0,0.58540583]
[1761671830940,6.667e-05,115470.0,115460.0,0.58540583]
[1761671831141,6.667e-05,115470.0,115460.0,0.58840583]
[1761671831447,6.667e-05,115470.0,115460.0,0.58940583]
[1761671832747,0.19221729,115500.0,115470.0,0.0866011]
[1761671832948,0.16885766,115490.0,115480.0,0.16885766]
[1761671833147,0.19060835,115490.0,115480.0,0.16885766]
[1761671833844,0.02175069,115490.0,115480.0,0.33771532]
[1761671834437,0.02175069,115490.0,115480.0,0.16885766]
[1761671835844,0.02175069,115490.0,115480.0,0.1687656]
[1761671836346,0.02375069,115490.0,115470.0,0.2579667]
[1761671836651,0.02375069,115490.0,115470.0,0.2553667]
[1761671836953,0.02375069,115490.0,115480.0,0.1687656]
[1761671837152,0.02375069,115490.0,115480.0,0.1713656]
[1761671837350,0.02375069,115490.0,115480.0,0.1687656]
[1761671837851,0.02375069,115490.0,115470.0,0.2553667]
[1761671838052,0.02375069,115490.0,115480.0,0.1713656]
[1761671839053,0.02375069,115490.0,115480.0,0.1687656]
[1761671839254,0.02375069,115490.0,115470.0,0.2553667]
[1761671839863,0.02375069,115490.0,115480.0,0.4149231]
[1761671840257,0.002,115490.0,115480.0,0.4149231]
[1761671840555,0.02373932,115490.0,115480.0,0.4149231]
[1761671841261,0.002,115490.0,115480.0,0.4149231]
[1761671841456,0.02335963,115510.0,115480.0,0.5015206]
[1761671841644,0.02335963,115510.0,115490.0,0.2579552]
[1761671841850,0.04509547,115510.0,115490.0,0.2553552]
[1761671842560,0.03116665,115500.0,115490.0,0.1687656]
[1761671842751,0.05290249,115500.0,115490.0,0.1687656]
[1761671843345,0.05450427,115500.0,115490.0,0.1687656]
[1761671843545,0.04507346,115500.0,115490.0,0.1687656]
[1761671843759,0.04507346,115500.0,115490.0,0.2553557]
[1761671844257,0.04507346,115500.0,115490.0,0.26412187]
[1761671844459,0.04507346,115500.0,115490.0,0.17753177]
[1761671845061,0.04907346,115500.0,115490.0,0.17753177]
[1761671845260,0.04907346,115500.0,115490.0,0.26412187]
[1761671846254,0.04907346,115500.0,115490.0,0.17753177]
[1761671847664,0.05850427,115500.0,115490.0,0.26412187]
[1761671847966,0.02733762,115500.0,115490.0,0.26672187]
[1761671848164,0.04907346,115500.0,115490.0,0.26672187]
[1761671848460,0.04907346,115500.0,115490.0,0.26412187]
[1761671848654,0.04907346,115500.0,115490.0,0.26672187]
[1761671848855,0.04907346,115500.0,115490.0,0.26412187]
[1761671849156,0.04907346,115500.0,115490.0,0.00876617]
[1761671849361,0.04907346,115500.0,115480.0,0.4123167]
[1761671849562,0.05850427,115500.0,115480.0,0.4123167]
[1761671849754,0.04907346,115500.0,115480.0,0.4123167]
[1761671850062,0.04907346,115500.0,115480.0,0.4989078]
[1761671850360,0.04907346,115500.0,115480.0,0.5015078]
[1761671852060,0.04907346,115500.0,115480.0,0.4989078]
[1761671852260,0.04907346,115500.0,115480.0,0.4123167]
[1761671852463,0.02573584,115500.0,115480.0,0.4989087]
[1761671852764,0.02573584,115500.0,115480.0,0.4123167]
[1761671852962,0.02573584,115500.0,115480.0,0.50763768]
[1761671853260,0.02573584,115500.0,115490.0,0.2553556]
[1761671853458,0.02573584,115500.0,115490.0,0.2579556]
[1761671853762,0.02573584,115500.0,115490.0,0.2553556]
[1761671854259,0.02573584,115500.0,115490.0,0.1687656]
[1761671854457,0.02573584,115500.0,115490.0,0.2553556]
[1761671854658,0.02573584,115500.0,115480.0,0.25228468]
[1761671854859,0.02573584,115500.0,115490.0,0.1687656]
[1761671855362,0.02573584,115500.0,115490.0,0.2553556]
[1761671857663,0.02573584,115500.0,115490.0,0.08659]
[1761671859664,0.02573584,115500.0,115490.0,0.2553556]
[1761671860256,0.02573584,115500.0,115490.0,0.08659]
[1761671860658,0.02573584,115500.0,115490.0,0.2553556]
[1761671860961,0.02573584,115500.0,115490.0,0.2579556]
[1761671864569,0.02573584,115500.0,115490.0,0.08919]
[1761671864763,0.02573584,115500.0,115490.0,0.2553556]
[1761671872172,0.02573584,115500.0,115490.0,0.2579556]
[1761671872375,0.02573584,115500.0,115490.0,0.2553556]
[1761671874775,0.19450144,115500.0,115490.0,0.15688]
[1761671875172,0.02573584,115500.0,115490.0,0.2434701]
[1761671875479,0.02573584,115500.0,115490.0,0.4122357]
[1761671877966,0.02573584,115500.0,115490.0,0.4148357]
[1761671879079,0.02573584,115500.0,115490.0,0.4122357]
[1761671880274,0.02573584,115500.0,115490.0,0.4148357]
[1761671880769,0.02442096,115500.0,115490.0,0.5836013]
[1761671880973,0.02333762,115520.0,115510.0,0.086575]
[1761671881182,0.02333762,115520.0,115510.0,0.4122206]
[1761671882175,0.02433762,115520.0,115510.0,0.4122206]
[1761671882580,0.03216665,115520.0,115510.0,0.4122206]
[1761671882784,0.03216665,115520.0,115510.0,0.4148206]
[1761671882983,0.03216665,115520.0,115510.0,0.4122206]
[1761671883178,0.03216665,115520.0,115510.0,0.4148206]
[1761671883179,0.06252037,115520.0,115510.0,0.4148206]
[1761671883487,0.03135372,115520.0,115510.0,0.5835862]
[1761671883786,0.03116665,115530.0,115520.0,0.0865676]
[1761671883970,0.04668351,115540.0,115530.0,0.0865601]
[1761671884176,0.06682212,115560.0,115540.0,0.0865526]
[1761671884177,0.04668351,115550.0,115540.0,0.0865526]
[1761671884388,0.04668351,115550.0,115540.0,0.4122382]
[1761671884889,0.0045,115560.0,115540.0,0.4122382]
[1761671885073,0.0045,115560.0,115550.0,0.1687656]
[1761671885382,0.0045,115560.0,115550.0,0.17726686]
[1761671885584,0.0045,115560.0,115550.0,0.26381166]
[1761671886579,0.1732656,115600.0,115560.0,0.0865365]
[1761671886786,0.1732656,115600.0,115570.0,0.3258056]
[1761671887986,0.1742656,115600.0,115570.0,0.3258056]
[1761671888489,0.1742656,115600.0,115590.0,0.1687656]
[1761671888490,0.0055,115600.0,115590.0,0.1687656]
[1761671888679,0.0055,115600.0,115590.0,0.15704]
[1761671889284,0.0055,115600.0,115590.0,0.3258056]
[1761671891289,0.0055,115600.0,115590.0,0.5810861]
[1761671891592,0.45118351,115640.0,115600.0,0.0865037]
[1761671891787,0.5732656,115640.0,115610.0,0.3258056]
[1761671891992,0.58204481,115640.0,115610.0,0.33468018]
[1761671892193,0.5732656,115640.0,115610.0,0.33468018]
[1761671892395,0.5732656,115640.0,115610.0,0.42117978]
[1761671892793,0.5732656,115640.0,115610.0,0.33468018]
[1761671893091,0.59644596,115640.0,115610.0,0.16591458]
[1761671893389,0.59644596,115640.0,115610.0,0.33468018]
[1761671893595,0.42768036,115640.0,115610.0,0.33468018]
[1761671894086,0.59644596,115640.0,115610.0,0.33468018]
[1761671894897,0.42768036,115640.0,115620.0,0.1687656]
[1761671895092,0.59644596,115640.0,115610.0,0.33468018]
[1761671896095,0.59444596,115640.0,115610.0,0.33468018]
[1761671896294,0.60244596,115640.0,115610.0,0.33468018]
[1761671896991,0.60044596,115640.0,115610.0,0.16591458]
[1761671897294,0.1687656,115630.0,115610.0,0.33468018]
[1761671897499,0.18994596,115630.0,115610.0,0.33468018]
[1761671897688,0.18994596,115630.0,115610.0,0.33431398]
[1761671897689,0.18957976,115630.0,115610.0,0.33431398]
[1761671897990,0.1683994,115620.0,115610.0,0.1683994]
[1761671898202,0.35797916,115620.0,115610.0,0.15704]
[1761671898392,0.35797916,115620.0,115600.0,0.15708]
[1761671898592,0.1683994,115610.0,115600.0,0.15708]
[1761671898793,0.18957976,115610.0,115600.0,0.15708]
[1761671899103,0.18957976,115610.0,115600.0,0.3254794]
[1761671899395,0.02118036,115610.0,115600.0,0.50267174]
[1761671900195,0.001,115610.0,115600.0,0.50267174]
[1761671900895,0.001,115610.0,115600.0,0.58917934]
[1761671901298,0.003,115610.0,115600.0,0.58917934]
[1761671903296,0.002,115610.0,115600.0,0.58917934]
[1761671903501,0.003,115610.0,115600.0,0.58917934]
[1761671905906,0.001,115610.0,115600.0,0.58917934]
[1761671911912,0.001,115610.0,115600.0,0.75757874]
[1761671912113,0.4045,115640.0,115610.0,0.0864981]
[1761671912406,0.59398942,115640.0,115630.0,0.1683994]
[1761671913003,0.42559002,115640.0,115630.0,0.1683994]
[1761671913314,0.42559002,115640.0,115630.0,0.43206671]
[1761671913509,0.30465566,115640.0,115630.0,0.43206671]
[1761671913712,0.30465566,115640.0,115630.0,1.17206671]
[1761671913911,0.29865566,115640.0,115630.0,1.08558181]
[1761671914119,0.30465566,115640.0,115630.0,1.08558181]
[1761671914418,0.30565566,115640.0,115630.0,1.08558181]
[1761671915618,0.30565566,115640.0,115630.0,0.91718241]
[1761671915806,0.47405506,115640.0,115630.0,0.90574301]
[1761671916009,0.47405506,115640.0,115630.0,1.07414241]
[1761671916217,0.47405506,115640.0,115630.0,1.07418241]
[1761671916420,0.30565566,115640.0,115630.0,0.33418241]
[1761671916629,0.30565566,115640.0,115630.0,0.1683994]
[1761671916816,0.47405506,115640.0,115630.0,0.3253994]
[1761671917420,0.30565566,115640.0,115630.0,0.3253994]
[1761671917817,0.47405506,115640.0,115630.0,0.3253994]
[1761671920323,0.30565566,115640.0,115630.0,0.3253994]
[1761671920620,0.47405506,115640.0,115630.0,0.3253994]
[1761671921223,0.30565566,115640.0,115630.0,0.3253994]
[1761671922224,0.30565566,115640.0,115630.0,0.157]
[1761671922522,0.47405506,115640.0,115630.0,0.3253994]
[1761671922721,0.64245446,115640.0,115630.0,0.157]
[1761671922924,0.67340764,115640.0,115600.0,0.8265055]
[1761671923218,0.33660884,115640.0,115610.0,0.4118191]
[1761671923416,0.1683994,115630.0,115620.0,0.1683994]
[1761671923610,0.18948942,115630.0,115620.0,0.1683994]
[1761671923821,0.02109002,115630.0,115610.0,0.2434197]
[1761671924021,0.1683994,115630.0,115620.0,0.1683994]
[1761671924318,0.18948942,115630.0,115620.0,0.1683994]
[1761671924623,0.02109002,115630.0,115620.0,0.1683994]
[1761671924826,0.50500824,115640.0,115620.0,0.1683994]
[1761671925124,0.54469175,115640.0,115620.0,0.1683994]
[1761671925323,0.1683994,115630.0,115620.0,0.1683994]
[1761671925523,0.18948942,115630.0,115620.0,0.1683994]
[1761671925727,0.18948942,115630.0,115610.0,0.2434197]
[1761671925728,0.19348942,115630.0,115610.0,0.2434197]
[1761671925927,0.19348942,115630.0,115620.0,0.1683994]
[1761671926123,0.02609002,115630.0,115620.0,0.1683994]
[1761671926630,0.02209002,115630.0,115620.0,0.1683994]
[1761671926928,0.19048942,115630.0,115620.0,0.1683994]
[1761671927920,0.19448942,115630.0,115620.0,0.1683994]
[1761671928416,0.19048942,115630.0,115620.0,0.1683994]
[1761671928619,0.19448942,115630.0,115620.0,0.1683994]
[1761671928829,0.19448942,115630.0,115610.0,0.2434193]
[1761671928830,0.19448942,115630.0,115610.0,0.15692]
[1761671929023,0.02609002,115630.0,115620.0,0.1683994]
[1761671929223,0.20435258,115630.0,115610.0,0.3253194]
[1761671929426,0.1683994,115620.0,115610.0,0.15688]
[1761671929631,0.02109002,115620.0,115610.0,0.15688]
[1761671929828,0.35788882,115620.0,115610.0,0.15688]
[1761671930226,0.0520432,115620.0,115610.0,0.15688]
[1761671930423,0.19935258,115620.0,115610.0,0.15688]
[1761671930627,0.2204426,115620.0,115610.0,0.15688]
[1761671931035,0.18948942,115620.0,115610.0,0.15688]
[1761671932133,0.2214426,115620.0,115610.0,0.15688]
[1761671932432,0.389842,115620.0,115600.0,0.16574164]
[1761671932733,0.1683994,115610.0,115600.0,0.33414104]
[1761671933032,0.18948942,115610.0,115600.0,0.33414104]
[1761671934234,0.18948942,115610.0,115600.0,0.16574164]
[1761671934622,0.02109002,115610.0,115600.0,0.33414104]
[1761671935028,0.1683994,115610.0,115600.0,0.33414104]
[1761671935225,0.18948942,115610.0,115600.0,0.33414104]
[1761671936133,0.18948942,115610.0,115600.0,0.3252794]
[1761671936335,0.18948942,115610.0,115600.0,0.15688]
[1761671936935,0.18948942,115610.0,115590.0,0.4117946]
[1761671937135,0.1683994,115600.0,115590.0,0.33394024]
[1761671937335,0.0212174,115600.0,115590.0,0.33394024]
[1761671937531,0.0212174,115600.0,115590.0,0.42045574]
[1761671938635,0.0212174,115600.0,115590.0,0.42245574]
[1761671939336,0.1683994,115610.0,115590.0,0.42245574]
[1761671939533,0.18961462,115610.0,115600.0,0.1683994]
[1761671939732,0.18961462,115610.0,115590.0,0.002]
[1761671939932,0.18961462,115610.0,115590.0,0.15884]
[1761671939933,0.3367988,115600.0,115590.0,0.15884]
[1761671940136,0.35801486,115600.0,115590.0,0.15884]
[1761671940333,0.02121606,115600.0,115590.0,0.15884]
[1761671940533,0.35801486,115600.0,115590.0,0.15684]
[1761671941036,0.35801486,115600.0,115580.0,0.3252794]
[1761671941236,0.1683994,115590.0,115580.0,0.33392898]
[1761671941629,0.1683994,115590.0,115580.0,0.16552958]
[1761671941828,0.1683994,115590.0,115580.0,0.33392898]
[1761671943228,0.1683994,115590.0,115580.0,0.16552958]
[1761671943434,0.1683994,115590.0,115580.0,0.33892898]
[1761671944036,0.1683994,115590.0,115580.0,0.16188]
[1761671944227,0.3367988,115590.0,115580.0,0.005]
[1761671944633,0.3393988,115590.0,115580.0,0.005]
[1761671945328,0.3367988,115590.0,115580.0,0.005]
[1761671947428,0.1683994,115590.0,115580.0,0.005]
[1761671947743,0.3253594,115590.0,115580.0,0.005]
[1761671947941,0.1683994,115590.0,115580.0,0.1733994]
[1761671948143,0.3253594,115590.0,115580.0,0.1733994]
[1761671948734,0.3253594,115590.0,115580.0,0.005]
[1761671949338,0.1683994,115590.0,115580.0,0.005]
[1761671950136,0.3253994,115590.0,115580.0,0.005]
[1761671950633,0.3253994,115590.0,115580.0,0.1733994]
[1761671951143,0.3253994,115590.0,115580.0,0.005]
[1761671951539,0.34623247,115590.0,115580.0,0.005]
[1761671953140,0.51463187,115590.0,115580.0,0.005]
[1761671953338,0.53723187,115590.0,115570.0,0.00442212]
[1761671953538,0.3367988,115580.0,115570.0,0.00442212]
[1761671953740,0.63863127,115580.0,115530.0,0.39153658]
[1761671953939,0.1683994,115540.0,115530.0,0.00432769]
[1761671954743,0.16847383,115540.0,115530.0,0.00432769]
[1761671955545,0.33687323,115540.0,115530.0,0.00432769]
[1761671955847,7.443e-05,115540.0,115530.0,0.00432769]
[1761671956241,0.26360872,115540.0,115530.0,0.00432769]
[1761671956545,7.443e-05,115540.0,115530.0,0.00432769]
[1761671957743,7.443e-05,115540.0,115530.0,0.01432769]
[1761671959745,0.37356314,115540.0,115530.0,0.01432769]
[1761671959940,0.37616314,115540.0,115530.0,0.00532769]
[1761671960140,0.99616314,115540.0,115530.0,0.00407827]
[1761671960342,0.39616314,115540.0,115490.0,0.17941868]
[1761671960542,0.35348871,115520.0,115490.0,0.26600788]
[1761671960841,0.51060871,115530.0,115490.0,0.17941868]
[1761671961144,0.51060871,115530.0,115490.0,0.26600888]
[1761671961345,0.51060871,115530.0,115490.0,0.17941868]
[1761671961939,0.51060871,115530.0,115490.0,0.18041868]
[1761671962147,0.35348871,115520.0,115490.0,0.06705868]
[1761671962351,0.35348871,115500.0,115490.0,0.00532919]
[1761671962543,0.51074183,115510.0,115490.0,0.00532919]
[1761671962948,9.312e-05,115510.0,115490.0,0.00532919]
[1761671963148,0.15725312,115510.0,115490.0,0.3588179]
[1761671963448,9.312e-05,115510.0,115490.0,0.445408]
[1761671963847,9.312e-05,115510.0,115490.0,0.602608]
[1761671964054,9.312e-05,115510.0,115500.0,0.44007141]
[1761671964561,0.02048,115530.0,115510.0,0.0865746]
[1761671964852,0.15724,115540.0,115510.0,0.44006331]
[1761671965056,0.15724,115550.0,115510.0,0.59730331]
[1761671965249,0.51072871,115550.0,115510.0,0.2438146]
[1761671965449,0.002,115530.0,115510.0,0.2438146]
[1761671965658,0.002,115530.0,115510.0,0.15724]
[1761671966755,0.51072871,115550.0,115510.0,0.15724]
[1761671966955,0.35348871,115540.0,115510.0,0.15724]
[1761671967159,0.37348871,115540.0,115500.0,0.0885822]
[1761671967357,0.37608871,115540.0,115500.0,0.15724]
[1761671967550,0.37608871,115540.0,115500.0,0.243822]
[1761671967856,0.35348871,115540.0,115500.0,0.243822]
[1761671968857,0.002,115540.0,115500.0,0.243822]
[1761671969245,0.022,115540.0,115500.0,0.15724]
[1761671969653,0.022,115540.0,115500.0,0.2438218]
[1761671969855,0.37548871,115540.0,115500.0,0.2438218]
[1761671970250,0.35548871,115540.0,115500.0,0.2438218]
[1761671970955,0.35548871,115540.0,115500.0,0.2438177]
[1761671971254,0.35548871,115540.0,115500.0,0.28999912]
[1761671971456,0.002,115540.0,115510.0,0.04618142]
[1761671971640,0.35548871,115540.0,115510.0,0.04618142]
[1761671971846,0.002,115540.0,115510.0,0.04618142]
[1761671972043,0.002,115540.0,115510.0,0.13275482]
[1761671972448,0.002,115540.0,115510.0,0.04618142]
[1761671972649,0.002,115540.0,115500.0,0.64348773]
[1761671973149,0.51072871,115550.0,115500.0,0.64348773]
[1761671973352,0.002,115540.0,115500.0,0.64348773]
[1761671973549,0.35548871,115540.0,115500.0,0.28999902]
[1761671973749,0.35348871,115540.0,115500.0,0.28999902]
[1761671973962,0.35548871,115540.0,115500.0,0.28999902]
[1761671975565,0.35548871,115540.0,115510.0,0.0865746]
[1761671976160,0.002,115540.0,115510.0,0.0865746]
[1761671977252,0.35548871,115540.0,115500.0,0.28999872]
[1761671977452,0.35548871,115540.0,115510.0,0.04618142]
[1761671977655,0.39548871,115540.0,115510.0,0.04618142]
[1761671978261,0.35348871,115530.0,115500.0,0.04618142]
[1761671978563,0.35608871,115530.0,115500.0,0.20334142]
[1761671978758,0.35348871,115520.0,115500.0,0.20334142]
[1761671979163,0.35348871,115520.0,115500.0,0.04618142]
[1761671979456,0.35348871,115510.0,115500.0,0.04618142]
[1761671979658,0.51064871,115530.0,115500.0,0.04618142]
[1761671979863,0.35348871,115530.0,115500.0,0.04618142]
[1761671980058,0.15716,115520.0,115500.0,0.04618142]
[1761671980259,0.15716,115520.0,115510.0,0.04618142]
[1761671980459,0.15716,115520.0,115500.0,0.04618142]
[1761671980760,0.15716,115520.0,115500.0,0.04818142]
[1761671981367,0.15716,115520.0,115510.0,0.04618142]
[1761671982460,0.23229434,115520.0,115490.0,0.09091869]
[1761671982664,0.20134116,115520.0,115490.0,0.13710011]
[1761671983462,0.20134116,115520.0,115490.0,0.09091869]
[1761671985269,0.17802465,115520.0,115490.0,0.09091869]
[1761671985466,0.02086465,115520.0,115500.0,0.086582]
[1761671985867,0.02086465,115520.0,115500.0,0.243702]
[1761671986065,0.02086465,115520.0,115500.0,0.59718481]
[1761671986765,0.02086465,115520.0,115510.0,0.0865748]
[1761671988669,0.18047651,115540.0,115510.0,0.0865748]
[1761671988869,0.20130753,115540.0,115510.0,0.0865748]
[1761671989068,0.0865723,115520.0,115510.0,0.0865748]
[1761671989371,0.10740472,115520.0,115510.0,0.0865746]
[1761671990769,0.10740472,115520.0,115510.0,0.0905746]
[1761671990975,0.0865737,115520.0,115510.0,0.44406331]
[1761671992076,0.0865737,115520.0,115510.0,0.0905746]
[1761671994579,0.0865737,115520.0,115510.0,0.16108]
[1761671994773,0.0865737,115520.0,115510.0,0.2476548]
[1761671995375,0.0865737,115520.0,115510.0,0.16108]
[1761671995673,0.0865737,115520.0,115510.0,0.2476548]
[1761671998176,0.0865737,115520.0,115510.0,0.16108]
[1761671998876,0.0865737,115520.0,115510.0,0.2476549]
[1761672000974,0.0865737,115520.0,115510.0,0.16108]
[1761672001681,0.0865737,115520.0,115510.0,0.2476549]
[1761672003681,0.0865737,115520.0,115510.0,0.16108]
[1761672003881,0.10740364,115520.0,115510.0,0.004]
[1761672004887,0.0865737,115520.0,115510.0,0.004]
[1761672005386,0.0865737,115520.0,115500.0,0.59715101]
[1761672005985,0.0865737,115520.0,115500.0,0.2436623]
[1761672006286,0.10741484,115520.0,115500.0,0.2436623]
[1761672008288,0.10741484,115520.0,115500.0,0.28984372]
[1761672012279,0.10741484,115520.0,115500.0,0.72990853]
[1761672012484,0.02084114,115520.0,115510.0,0.13275642]
[1761672013786,0.0865598,115530.0,115510.0,0.48623883]
[1761672013990,0.10743682,115530.0,115520.0,0.15704]
[1761672014884,0.10743682,115530.0,115520.0,0.2436075]
[1761672015280,0.10743682,115530.0,115520.0,0.2456075]
[1761672015485,0.10743682,115530.0,115520.0,0.15904]
[1761672016087,0.10743682,115530.0,115520.0,0.2456075]
[1761672016593,0.10743682,115530.0,115520.0,0.15904]
[1761672017693,0.02087702,115530.0,115520.0,0.64527763]
[1761672018297,0.02330478,115550.0,115540.0,0.0865525]
[1761672018487,0.02330478,115550.0,115540.0,0.59712121]
[1761672018689,0.02087061,115550.0,115540.0,0.59712121]
[1761672019688,0.02087061,115550.0,115540.0,0.506995]
[1761672021190,0.02287061,115550.0,115540.0,0.51567138]
[1761672022094,0.02087061,115550.0,115540.0,0.51967138]
[1761672022689,0.02330478,115550.0,115540.0,0.51967138]
[1761672024388,0.02087061,115550.0,115540.0,0.51966408]
[1761672025703,0.04417539,115550.0,115540.0,0.51966408]
[1761672028102,0.02087061,115550.0,115540.0,0.51966408]
[1761672032604,0.05425796,115570.0,115550.0,0.0865375]
[1761672032806,0.05425796,115570.0,115560.0,0.50682]
[1761672033304,0.04420669,115570.0,115560.0,0.50682]
[1761672033506,0.05425796,115570.0,115560.0,0.50682]
[1761672033695,0.04420669,115570.0,115560.0,0.50682]
[1761672036303,0.02090191,115570.0,115560.0,0.50682]
[1761672037304,0.02330478,115570.0,115560.0,0.50682]
[1761672037511,0.04420669,115570.0,115560.0,0.50682]
[1761672038191,0.02090191,115570.0,115560.0,0.50682]
[1761672039202,0.02090191,115570.0,115560.0,1.22842]
[1761672041708,0.02090191,115570.0,115560.0,1.30209188]
[1761672042206,0.02330478,115570.0,115560.0,1.30209188]
[1761672042403,0.17615719,115580.0,115560.0,1.30209188]
[1761672042599,0.17615719,115580.0,115570.0,0.52931719]
[1761672043800,0.17815719,115580.0,115570.0,0.52931719]
[1761672044202,0.17615719,115580.0,115570.0,0.52931719]
[1761672044499,0.17815719,115580.0,115570.0,0.52931719]
[1761672045808,0.00964,115580.0,115570.0,0.52931719]
[1761672046599,0.17815719,115580.0,115570.0,0.3608]
[1761672046799,0.17815719,115580.0,115570.0,0.51768]
[1761672047000,0.17815719,115580.0,115570.0,0.68619719]
[1761672047410,0.17815719,115580.0,115570.0,0.61584729]
[1761672047411,0.00964,115580.0,115570.0,0.61584729]
[1761672047706,0.00964,115580.0,115570.0,0.77272729]
[1761672050702,0.00964,115580.0,115570.0,0.94124448]
[1761672054912,0.00964,115580.0,115570.0,0.77272729]
[1761672055295,0.17815719,115580.0,115570.0,0.4473301]
[1761672055610,0.00964,115580.0,115570.0,0.77272729]
[1761672065916,0.00964,115580.0,115570.0,0.77272769]
[1761672067918,0.17815719,115580.0,115570.0,0.3608]
[1761672068105,0.00964,115580.0,115570.0,0.68615719]
[1761672068418,0.00964,115580.0,115570.0,0.85467438]
[1761672068608,0.00964,115580.0,115570.0,0.94120488]
[1761672069714,0.0045,115600.0,115570.0,0.94120488]
[1761672069925,0.0045,115600.0,115590.0,0.52931719]
[1761672070118,0.0045,115600.0,115590.0,0.68615719]
[1761672070427,0.0045,115600.0,115590.0,0.85467438]
[1761672070719,0.0045,115600.0,115590.0,1.13347269]
[1761672071224,0.0105,115600.0,115590.0,1.13347269]
[1761672071716,0.0115,115600.0,115590.0,1.13347269]
[1761672071917,0.0175,115600.0,115590.0,1.13347269]
[1761672072222,0.0386001,115600.0,115590.0,1.14217318]
[1761672073519,0.0386001,115600.0,115590.0,1.31069037]
[1761672073724,0.0386001,115600.0,115590.0,1.14217318]
[1761672077133,0.39893926,115600.0,115580.0,0.3608]
[1761672077322,0.09285806,115600.0,115580.0,0.3608]
[1761672077516,0.16851719,115590.0,115580.0,0.3608]
[1761672077715,0.18961729,115590.0,115580.0,0.3608]
[1761672077926,0.18961729,115590.0,115580.0,0.52931719]
[1761672078129,0.0211001,115590.0,115580.0,0.52931719]
[1761672078333,0.0211001,115590.0,115580.0,0.69783438]
[1761672078626,0.0211001,115590.0,115580.0,0.78435738]
[1761672079412,0.0241001,115590.0,115580.0,0.3608]
[1761672079619,0.0241001,115590.0,115580.0,0.69783438]
[1761672080116,0.19361729,115590.0,115580.0,0.3608]
[1761672080321,0.19361729,115590.0,115580.0,0.52931719]
[1761672080523,0.0251001,115590.0,115580.0,0.52931719]
[1761672080724,0.19361729,115590.0,115580.0,0.52931719]
[1761672081726,0.19361729,115590.0,115580.0,0.3608]
[1761672081727,0.0251001,115590.0,115580.0,0.3608]
[1761672084724,0.0251001,115590.0,115580.0,0.52929754]
[1761672085231,0.0251001,115590.0,115580.0,0.61582054]
[1761672085232,0.004,115590.0,115580.0,0.61582054]
[1761672092033,0.004,115590.0,115580.0,0.67755003]
[1761672092624,0.004,115590.0,115580.0,0.61582054]
[1761672096741,0.004,115590.0,115580.0,1.21582054]
[1761672100952,0.004,115590.0,115580.0,0.447323]
[1761672101142,0.004,115590.0,115580.0,0.61582054]
[1761672101343,0.004,115590.0,115580.0,0.77262054]
[1761672101651,0.0252393,115590.0,115580.0,0.77262054]
[1761672101852,0.004,115590.0,115580.0,0.77262054]
[1761672102450,0.004,115590.0,115580.0,0.604123]
[1761672102652,0.004,115590.0,115580.0,0.77262054]
[1761672104856,0.004,115590.0,115580.0,0.68609754]
[1761672105152,0.004,115590.0,115580.0,0.77262054]
[1761672105852,0.004,115590.0,115580.0,0.5176]
[1761672106052,0.17249754,115590.0,115580.0,0.3608]
[1761672106447,0.19373909,115590.0,115580.0,0.3608]
[1761672106654,0.19373909,115590.0,115570.0,0.3608]
[1761672106855,0.19373909,115590.0,115570.0,0.5176]
[1761672107053,0.52929754,115580.0,115560.0,0.06172949]
[1761672107252,0.52929754,115570.0,115550.0,0.06172949]
[1761672107454,0.53189754,115570.0,115540.0,0.74782703]
[1761672107650,0.16849754,115570.0,115550.0,0.3608]
[1761672108748,0.16849754,115570.0,115550.0,0.3618]
[1761672108956,0.17730584,115570.0,115550.0,0.3618]
[1761672109856,0.17730584,115570.0,115550.0,0.53029754]
[1761672109857,0.16849754,115570.0,115550.0,0.53029754]
[1761672110059,0.17737108,115570.0,115550.0,0.3618]
[1761672110256,0.00887354,115570.0,115550.0,0.53029754]
[1761672110458,0.5176,115580.0,115550.0,0.53029754]
[1761672110658,0.5176,115580.0,115550.0,0.3618]
[1761672110659,0.16849754,115570.0,115550.0,0.3618]
[1761672111150,0.68609754,115580.0,115550.0,0.53029754]
[1761672111355,0.70754263,115580.0,115550.0,0.53029754]
[1761672111750,0.55074263,115580.0,115550.0,0.52929754]
[1761672111950,0.70758263,115580.0,115550.0,0.52929754]